fUSD/lending_fUSD_20240317
["ID","MTS","AMOUNT","RATE_DAILY","PERIOD"]
[319273598,1710633806462,710.1,0.00010002,2]
[319273599,1710633955916,-155.0,0.00011811,2]
[319273600,1710633956489,139.49368617,0.00011811,2]
[319273601,1710633956962,666.754628,0.00011752,2]
[319273602,1710633957444,-274.58936909,0.00011811,2]
[319273603,1710633966901,217.18831317,0.0001181,2]
[319273604,1710633972839,451.10430523,0.0001181,2]
[319273605,1710633973071,274.58936909,0.00010002,2]
[319273606,1710633978117,-127.96622919,0.00011811,2]
[319273607,1710633978140,-105.06800753,0.00011811,2]
[319273608,1710633978739,-150.0,0.00011811,2]
[319273609,1710633978880,710.20818987,0.0001181,2]
[319273610,1710633979530,-150.0,0.00011811,2]
[319273611,1710633980141,-150.0,0.00011811,2]
[319273612,1710633980635,-150.0,0.00011811,2]
[319273613,1710633981154,-150.0,0.00011811,2]
[319273614,1710633981662,-150.0,0.00011811,2]
[319273615,1710633982742,-150.0,0.00011811,2]
[319273616,1710633983264,-150.0,0.00011811,2]
[319273617,1710633984263,-150.0,0.00011811,2]
[319273618,1710633984895,-150.0,0.00011811,2]
[319273619,1710633985161,1585.29900268,0.0001181,2]
[319273620,1710633985331,-150.0,0.00011811,2]
[319273621,1710633986014,-150.0,0.00011811,2]
[319273622,1710633986429,-150.0,0.00011811,2]
[319273623,1710633986826,155.0,0.0001181,2]
[319273624,1710633987784,-150.0,0.00011811,2]
[319273625,1710633988203,-150.0,0.00011811,2]
[319273626,1710633989035,-150.0,0.00011811,2]
[319273627,1710633989566,3030.7737488,0.0001181,2]
[319273628,1710633989614,-150.0,0.00011811,2]
[319273629,1710633990186,-150.0,0.00011811,2]
[319273630,1710633990746,547.88346806,0.0001181,2]
[319273631,1710633990950,-150.0,0.00011811,2]
[319273632,1710633991511,-150.0,0.00011811,2]
[319273633,1710633992384,-150.0,0.00011811,2]
[319273634,1710633992887,-150.0,0.00011811,2]
[319273635,1710634006840,780.1567085,0.0001181,2]
[319273636,1710634009734,600.0,0.00011505,2]
[319273637,1710634025592,522.3615409,0.0001181,2]
[319273638,1710634026863,658.74639374,0.0001181,2]
[319273639,1710634050995,1367.20952763,0.0001181,2]
[319273640,1710634074405,-296.47949161,0.00011811,2]
[319273641,1710634090456,-6050.0,0.00011811,2]
[319273642,1710634096325,296.47949161,0.0001181,2]
[319273643,1710634096858,1235.12692231,0.0001181,2]
[319273644,1710634099714,155.0,0.0001181,2]
[319273645,1710634117549,-2986.05593156,0.00011811,2]
[319273646,1710634117861,-150.0,0.00011811,2]
[319273647,1710634117883,-3573.68,0.00011812,2]
[319273648,1710634117904,-250.0,0.00011812,2]
[319273649,1710634117932,-243.74,0.00011812,2]
[319273650,1710634117954,-200.0,0.00011853,2]
[319273651,1710634117976,-236.38,0.00011872,2]
[319273652,1710634117999,-452.24,0.00011886,2]
[319273653,1710634118024,-5886.04,0.00011935,2]
[319273654,1710634118047,-196.53,0.00011971,2]
[319273655,1710634211331,-155.0,0.00012015,2]
[319273656,1710634211359,-170.43,0.00012016,2]
[319273657,1710634211383,-4692.99337079,0.00012025,2]
[319273658,1710634211406,-6.91069765,0.00012026,2]
[319273669,1710634231963,-408.90780379,0.00012026,2]
[319273670,1710634231973,-4826.9074545,0.00012026,2]
[319273671,1710634231984,-250.0,0.00012026,2]
[319273672,1710634231995,-1801.80284681,0.00012026,2]
[319273673,1710634232007,-5335.81969869,0.00012026,2]
[319273674,1710634232017,-23900.0,0.00012027,2]
[319273675,1710634232026,-499.99,0.00012027,2]
[319273676,1710634232035,-6666.08,0.00012027,2]
[319273677,1710634232045,-395.51,0.00012056,2]
[319273678,1710634232054,-755.05925899,0.000121,2]
[319273679,1710634232064,-168.28,0.0001212,2]
[319273680,1710634232073,-200.0,0.00012165,2]
[319273681,1710634232083,-710.1,0.00012266,2]
[319273682,1710634232092,-150.99,0.00012266,2]
[319273683,1710634232101,-154.13,0.00012325,2]
[319273684,1710634232111,-509.29629272,0.00012349,2]
[319273685,1710634232122,-460.51,0.00012413,2]
[319273686,1710634232132,-154.13,0.00012417,2]
[319273687,1710634232142,-547.76,0.00012419,2]
[319273688,1710634232151,-154.13,0.00012508,2]
[319273689,1710634232160,-286962.0,0.00012556,2]
[319273690,1710634232169,-154.13,0.000126,2]
[319273691,1710634232179,-154.13,0.00012692,2]
[319273692,1710634232188,-451.10430523,0.00012758,2]
[319273693,1710634232197,-154.13,0.00012784,2]
[319273694,1710634232206,-150.99,0.00012837,2]
[319273695,1710634232217,-154.13,0.00012875,2]
[319273696,1710634232226,-154.13,0.00012967,2]
[319273697,1710634232235,-4745.03803475,0.0001305,2]
[319273698,1710634232244,-452.24,0.00013372,2]
[319273699,1710634232254,-464.83744717,0.000135,2]
[319273700,1710634232263,-431.3258,0.00013508,2]
[319273701,1710634232272,-208.3688,0.00013508,2]
[319273702,1710634232282,-6866.6324,0.00013508,2]
[319273703,1710634232292,-304.2399,0.00013508,2]
[319273704,1710634232301,-325.81058146,0.0001355,2]
[319273705,1710634232310,-185.07450796,0.0001355,2]
[319273706,1710634232319,-185.32,0.00013591,2]
[319273707,1710634232328,-191.44086947,0.00013597,2]
[319273708,1710634232338,-335382.91156067,0.00013607,2]
[319273709,1710634232350,-93284.53744208,0.00013607,2]
[319273710,1710634232365,-2733.68,0.00013607,2]
[319273711,1710634232405,-268.16578071,0.00013607,2]
[319273712,1710634232424,-1974.8225,0.00013607,2]
[319273713,1710634232438,-1667.15976627,0.00013607,2]
[319273714,1710634232450,-301.44505381,0.00013607,2]
[319273715,1710634232481,-368.59389449,0.00013607,2]
[319273717,1710634232493,-928.53687171,0.00013607,2]
[319273719,1710634232503,-1466.12667541,0.00013607,2]
[319273721,1710634232514,-4480.47,0.00013607,2]
[319273723,1710634232525,-25640.0,0.00013607,2]
[319273729,1710634232570,-491.01788678,0.00013607,2]
[319273731,1710634232581,-272.72700117,0.00013607,2]
[319273766,1710634237963,-615.02594041,0.00013607,2]
[319273767,1710634238068,-1318.82,0.00013607,2]
[319273769,1710634238422,-131828.0,0.00013607,2]
[319273770,1710634238434,-494.04231335,0.00013607,2]
[319273771,1710634238478,-89020.7871494,0.00013607,2]
[319273772,1710634238491,-1053.0157683,0.00013607,2]
[319273773,1710634238510,-39659.22976074,0.00013607,2]
[319273780,1710634239865,-1020.70751037,0.00013607,2]
[319273802,1710634240100,-2089.8967695,0.00013607,2]
[319273836,1710634242958,-132228.82291785,0.00013607,2]
[319273837,1710634242968,-200.0,0.00013699,2]
[319273838,1710634242978,-500.0,0.00013699,2]
[319273839,1710634242987,-3622.96,0.00013699,2]
[319273840,1710634242997,-959.81,0.00013699,2]
[319273841,1710634243006,-250.0,0.00013699,2]
[319273842,1710634243015,-549.78622866,0.000137,2]
[319273843,1710634243025,-325.81058142,0.00013814,2]
[319273844,1710634243036,-460.51,0.00013965,2]
[319273845,1710634243047,-547.76,0.00013971,2]
[319273846,1710634243056,-679.09501998,0.0001399,2]
[319273847,1710634243066,-921.24073566,0.00013994,2]
[319273848,1710634243086,-2286.13732054,0.00013997,2]
[319273849,1710634243096,-6531.79400099,0.00013999,2]
[319273850,1710634243105,-325.81058142,0.00014078,2]
[319273852,1710634243114,-181.231489,0.00014247,2]
[319273853,1710634243125,-800.0,0.00014274,2]
[319273854,1710634243134,-150.0,0.000143,2]
[319273855,1710634243143,-159.72,0.00014325,2]
[319273856,1710634243152,-356.4,0.00014342,2]
[319273857,1710634243161,-325.81058142,0.00014342,2]
[319273858,1710634243171,-168.5425,0.0001445,2]
[319273859,1710634243180,-159.72,0.0001445,2]
[319273860,1710634243189,-6908.0,0.00014523,2]
[319273861,1710634243200,-710.1,0.0001453,2]
[319273862,1710634243209,-159.72,0.00014576,2]
[319273863,1710634243220,-1000.0,0.00014597,2]
[319273864,1710634243230,-231241.43573006,0.000146,2]
[319273868,1710634243521,-576.29772032,0.000146,2]
[319273869,1710634243723,-356.17162188,0.000146,2]
[319273870,1710634243760,-452.00042774,0.000146,2]
[319273871,1710634243771,-325.81058142,0.00014607,2]
[319273872,1710634243781,-5886.04,0.00014675,2]
[319273873,1710634243791,-160.47757035,0.00014683,2]
[319273874,1710634243801,-330.34,0.00014685,2]
[319273875,1710634243810,-159.72,0.00014701,2]
[319273876,1710634243819,-159.72,0.00014826,2]
[319273877,1710634243829,-150.0,0.00014848,2]
[319273878,1710634243839,-452.24,0.00014858,2]
[319273879,1710634243850,-325.81058142,0.00014871,2]
[319273880,1710634243859,-150.0,0.00014887,2]
[319273881,1710634243871,-33294.53398809,0.000149,2]
[319273882,1710634243883,-2043.91434411,0.000149,2]
[319273883,1710634243894,-470.90830768,0.000149,2]
[319273884,1710634243904,-302.49514902,0.000149,2]
[319273885,1710634243915,-31306.771747,0.000149,2]
[319273886,1710634243942,-352.71194401,0.000149,2]
[319273888,1710634245950,-660.88211376,0.00013964,2]
[319273889,1710634247782,-281.28465344,0.00013964,2]
[319273890,1710634247845,-292.96015511,0.00013964,2]
[319273891,1710634247854,-13628.81484489,0.000149,2]
[319273892,1710634247867,-11350.0,0.000149,2]
[319273893,1710634247912,-3709.59943198,0.000149,2]
[319273894,1710634249132,-3540.25024322,0.000149,2]
[319273895,1710634249141,-150.0,0.0001492,2]
[319273896,1710634249150,-160.47757035,0.00014942,2]
[319273897,1710634249158,-159.72,0.00014952,2]
[319273898,1710634249168,-2550.0,0.00015,4]
[319273899,1710634249178,-174.06,0.00015068,2]
[319273900,1710634249188,-181.231489,0.00015068,2]
[319273901,1710634249197,-159.72,0.00015077,2]
[319273902,1710634249206,-325.81058142,0.00015135,2]
[319273903,1710634249215,-1046.921,0.00015136,2]
[319273904,1710634249224,-27932.02247559,0.0001515,2]
[319273905,1710634249236,-3566.5434888,0.0001515,2]
[319273906,1710634249255,-2999.25809624,0.0001515,2]
[319273907,1710634249268,-1826.80278998,0.0001515,2]
[319273908,1710634353853,-3746.06376802,0.00015499,10]
[319273909,1710634399793,-152.0,0.00017518,10]
[319273910,1710634399818,-152.0,0.00017732,11]
[319273911,1710634399843,-767.27,0.00017808,10]
[319273912,1710634399867,-152.0,0.00017947,12]
[319273913,1710634467101,-212.0,0.00011926,2]
[319273914,1710634467129,-16791.5266,0.00011927,2]
[319273915,1710634638583,151.031709,0.000193,30]
[319273916,1710634695916,151.031709,0.000193,30]
[319273917,1710634698021,151.031709,0.000193,30]
[319273918,1710634698639,151.031709,0.000193,30]
[319273919,1710634698830,151.031709,0.000193,30]
[319273920,1710634699818,151.031709,0.000193,30]
[319273921,1710634699962,151.031709,0.000193,30]
[319273922,1710634700513,151.031709,0.000193,30]
[319273923,1710634700545,151.031709,0.000193,30]
[319273924,1710634700753,151.031709,0.000193,30]
[319273925,1710634701128,151.031709,0.000193,30]
[319273926,1710634701537,151.031709,0.000193,30]
[319273927,1710634701902,151.031709,0.000193,30]
[319273928,1710634702302,151.031709,0.000193,30]
[319273929,1710634702718,151.031709,0.000193,30]
[319273930,1710634703109,151.031709,0.000193,30]
[319273931,1710634703497,151.031709,0.000193,30]
[319273932,1710634703893,151.031709,0.000193,30]
[319273933,1710634704298,151.031709,0.000193,30]
[319273934,1710634704720,151.031709,0.000193,30]
[319273935,1710634705090,151.031709,0.000193,30]
[319273936,1710634705487,151.031709,0.000193,30]
[319273937,1710634705894,151.031709,0.000193,30]
[319273938,1710634706362,151.031709,0.000193,30]
[319273939,1710634706706,151.031709,0.000193,30]
[319273940,1710634707118,151.031709,0.000193,30]
[319273941,1710634707515,151.031709,0.000193,30]
[319273942,1710634707949,151.031709,0.000193,30]
[319273943,1710634708343,151.031709,0.000193,30]
[319273944,1710634723320,151.031709,0.000193,30]
[319273945,1710634724210,151.031709,0.000193,30]
[319273946,1710634724728,151.031709,0.000193,30]
[319273947,1710634725116,151.031709,0.000193,30]
[319273948,1710634725516,151.031709,0.000193,30]
[319273949,1710634725869,151.031709,0.000193,30]
[319273950,1710634726492,151.031709,0.000193,30]
[319273951,1710634726603,151.031709,0.000193,30]
[319273952,1710634726967,151.031709,0.000193,30]
[319273953,1710634727663,151.031709,0.000193,30]
[319273954,1710634727724,151.031709,0.000193,30]
[319273955,1710634728116,151.031709,0.000193,30]
[319273956,1710634728494,151.031709,0.000193,30]
[319273957,1710634728872,151.031709,0.000193,30]
[319273958,1710634729238,151.031709,0.000193,30]
[319273959,1710634729621,151.031709,0.000193,30]
[319273960,1710634729987,151.031709,0.000193,30]
[319273961,1710634730399,151.031709,0.000193,30]
[319273962,1710634730929,151.031709,0.000193,30]
[319273963,1710634731464,151.031709,0.000193,30]
[319273964,1710634731593,151.031709,0.000193,30]
[319273965,1710634731991,151.031709,0.000193,30]
[319273966,1710634732378,151.031709,0.000193,30]
[319273967,1710634732783,151.031709,0.000193,30]
[319273968,1710634733182,151.031709,0.000193,30]
[319273969,1710634733621,151.031709,0.000193,30]
[319273970,1710634734197,151.031709,0.000193,30]
[319273971,1710634734386,151.031709,0.000193,30]
[319273972,1710634734770,151.031709,0.000193,30]
[319273973,1710634735174,151.031709,0.000193,30]
[319273974,1710634735616,151.031709,0.000193,30]
[319273975,1710634742906,222.031709,0.000193,30]
[319273976,1710634743675,222.031709,0.000193,30]
[319273977,1710634743989,222.031709,0.000193,30]
[319273978,1710634744687,222.031709,0.000193,30]
[319273979,1710634744984,222.031709,0.000193,30]
[319273980,1710634745374,222.031709,0.000193,30]
[319273981,1710634745772,222.031709,0.000193,30]
[319273982,1710634746346,222.031709,0.000193,30]
[319273983,1710634746633,222.031709,0.000193,30]
[319273984,1710634747024,222.031709,0.000193,30]
[319273985,1710634747456,222.031709,0.000193,30]
[319273986,1710634747898,222.031709,0.000193,30]
[319273987,1710634748320,222.031709,0.000193,30]
[319273988,1710634748758,222.031709,0.000193,30]
[319273989,1710634749216,222.031709,0.000193,30]
[319273990,1710634749633,222.031709,0.000193,30]
[319273991,1710634750053,222.031709,0.000193,30]
[319273992,1710634750501,222.031709,0.000193,30]
[319273993,1710634751205,222.031709,0.000193,30]
[319273994,1710634751327,222.031709,0.000193,30]
[319273995,1710634756641,333.031709,0.000193,30]
[319273996,1710634757406,333.031709,0.000193,30]
[319273997,1710634757721,333.031709,0.000193,30]
[319273998,1710634758169,333.031709,0.000193,30]
[319273999,1710634758597,333.031709,0.000193,30]
[319274000,1710634759025,333.031709,0.000193,30]
[319274001,1710634759433,333.031709,0.000193,30]
[319274002,1710634759862,333.031709,0.000193,30]
[319274003,1710634760293,333.031709,0.000193,30]
[319274004,1710634760717,333.031709,0.000193,30]
[319274005,1710634761161,333.031709,0.000193,30]
[319274006,1710634761608,333.031709,0.000193,30]
[319274007,1710634762046,333.031709,0.000193,30]
[319274008,1710634762925,333.031709,0.000193,30]
[319274009,1710634763015,333.031709,0.000193,30]
[319274010,1710634763312,333.031709,0.000193,30]
[319274011,1710634763718,333.031709,0.000193,30]
[319274012,1710634764148,333.031709,0.000193,30]
[319274013,1710634764564,333.031709,0.000193,30]
[319274014,1710634764965,333.031709,0.000193,30]
[319274015,1710634765444,333.031709,0.000193,30]
[319274016,1710634765878,333.031709,0.000193,30]
[319274017,1710634766431,333.031709,0.000193,30]
[319274018,1710634766741,333.031709,0.000193,30]
[319274019,1710634767181,333.031709,0.000193,30]
[319274020,1710634767625,333.031709,0.000193,30]
[319274021,1710634768052,333.031709,0.000193,30]
[319274022,1710634768503,333.031709,0.000193,30]
[319274023,1710634768913,333.031709,0.000193,30]
[319274024,1710634774412,444.031709,0.000193,30]
[319274025,1710634775342,444.031709,0.000193,30]
[319274026,1710634775800,444.031709,0.000193,30]
[319274027,1710634776373,444.031709,0.000193,30]
[319274028,1710634776685,444.031709,0.000193,30]
[319274029,1710634777112,444.031709,0.000193,30]
[319274030,1710634777552,444.031709,0.000193,30]
[319274031,1710634778007,444.031709,0.000193,30]
[319274032,1710634778434,444.031709,0.000193,30]
[319274033,1710634778881,444.031709,0.000193,30]
[319274034,1710634779361,444.031709,0.000193,30]
[319274035,1710634780805,444.031709,0.000193,30]
[319274036,1710634781290,444.031709,0.000193,30]
[319274037,1710634781870,444.031709,0.000193,30]
[319274038,1710634782079,444.031709,0.000193,30]
[319274039,1710634782294,444.031709,0.000193,30]
[319274040,1710634782499,444.031709,0.000193,30]
[319274041,1710634782724,444.031709,0.000193,30]
[319274042,1710634783195,444.031709,0.000193,30]
[319274043,1710634783704,444.031709,0.000193,30]
[319274044,1710634784191,444.031709,0.000193,30]
[319274045,1710634784654,444.031709,0.000193,30]
[319274046,1710634785143,444.031709,0.000193,30]
[319274047,1710634785624,444.031709,0.000193,30]
[319274048,1710634786227,444.031709,0.000193,30]
[319274049,1710634786519,444.031709,0.000193,30]
[319274050,1710634786989,444.031709,0.000193,30]
[319274051,1710634788223,444.031709,0.000193,30]
[319274052,1710634788740,444.031709,0.000193,30]
[319274053,1710634794311,555.031709,0.000193,30]
[319274054,1710634795210,555.031709,0.000193,30]
[319274055,1710634796284,555.031709,0.000193,30]
[319274056,1710634796617,555.031709,0.000193,30]
[319274057,1710634796659,555.031709,0.000193,30]
[319274058,1710634797280,555.031709,0.000193,30]
[319274059,1710634797508,555.031709,0.000193,30]
[319274060,1710634797962,555.031709,0.000193,30]
[319274061,1710634798449,555.031709,0.000193,30]
[319274062,1710634798904,555.031709,0.000193,30]
[319274063,1710634799351,555.031709,0.000193,30]
[319274064,1710634799891,555.031709,0.000193,30]
[319274065,1710634800428,555.031709,0.000193,30]
[319274066,1710634800851,555.031709,0.000193,30]
[319274067,1710634801367,555.031709,0.000193,30]
[319274068,1710634801874,555.031709,0.000193,30]
[319274069,1710634802366,555.031709,0.000193,30]
[319274070,1710634808176,666.031709,0.000193,30]
[319274071,1710634808966,666.031709,0.000193,30]
[319274072,1710634809418,666.031709,0.000193,30]
[319274073,1710634809867,666.031709,0.000193,30]
[319274074,1710634810302,666.031709,0.000193,30]
[319274075,1710634810784,666.031709,0.000193,30]
[319274076,1710634811265,666.031709,0.000193,30]
[319274077,1710634811734,666.031709,0.000193,30]
[319274078,1710634812226,666.031709,0.000193,30]
[319274079,1710634812713,666.031709,0.000193,30]
[319274080,1710634813182,666.031709,0.000193,30]
[319274081,1710634813652,666.031709,0.000193,30]
[319274082,1710634814122,666.031709,0.000193,30]
[319274083,1710634814991,666.031709,0.000193,30]
[319274084,1710634815107,666.031709,0.000193,30]
[319274085,1710634815552,666.031709,0.000193,30]
[319274086,1710634816066,666.031709,0.000193,30]
[319274087,1710634816542,666.031709,0.000193,30]
[319274088,1710634817010,666.031709,0.000193,30]
[319274089,1710634817512,666.031709,0.000193,30]
[319274090,1710634817950,666.031709,0.000193,30]
[319274091,1710634818420,666.031709,0.000193,30]
[319274092,1710634818911,666.031709,0.000193,30]
[319274093,1710634819603,666.031709,0.000193,30]
[319274094,1710634819871,666.031709,0.000193,30]
[319274095,1710634820343,666.031709,0.000193,30]
[319274096,1710634820881,666.031709,0.000193,30]
[319274097,1710634821340,666.031709,0.000193,30]
[319274098,1710634821838,666.031709,0.000193,30]
[319274099,1710634829423,777.031709,0.000193,30]
[319274100,1710634830307,777.031709,0.000193,30]
[319274101,1710634830722,777.031709,0.000193,30]
[319274102,1710634831086,777.031709,0.000193,30]
[319274103,1710634831419,777.031709,0.000193,30]
[319274104,1710634831747,777.031709,0.000193,30]
[319274105,1710634832056,777.031709,0.000193,30]
[319274106,1710634832412,777.031709,0.000193,30]
[319274107,1710634833060,777.031709,0.000193,30]
[319274108,1710634833548,777.031709,0.000193,30]
[319274109,1710634833901,619.01299141,0.000193,30]
[319274110,1710634833925,158.01871759,0.000193,30]
[319274111,1710634834523,777.031709,0.000193,30]
[319274112,1710634834857,777.031709,0.000193,30]
[319274113,1710634835225,777.031709,0.000193,30]
[319274114,1710634835794,777.031709,0.000193,30]
[319274115,1710634835971,777.031709,0.000193,30]
[319274116,1710634836414,777.031709,0.000193,30]
[319274117,1710634836707,777.031709,0.000193,30]
[319274118,1710634837163,777.031709,0.000193,30]
[319274119,1710634837489,777.031709,0.000193,30]
[319274120,1710634837752,777.031709,0.000193,30]
[319274121,1710634838091,777.031709,0.000193,30]
[319274122,1710634838488,777.031709,0.000193,30]
[319274123,1710634838886,777.031709,0.000193,30]
[319274124,1710634839231,777.031709,0.000193,30]
[319274125,1710634839625,777.031709,0.000193,30]
[319274126,1710634849073,888.031709,0.000193,30]
[319274127,1710634858553,151.031709,0.000193,30]
[319274128,1710634859482,151.031709,0.000193,30]
[319274129,1710634868119,151.031709,0.000193,30]
[319274130,1710634868947,151.031709,0.000193,30]
[319274131,1710634870295,151.031709,0.000193,30]
[319274132,1710634871578,151.031709,0.000193,30]
[319274133,1710634877858,151.031709,0.000193,30]
[319274134,1710634878990,151.031709,0.000193,30]
[319274135,1710634884592,716.99,0.00011477,2]
[319274136,1710635009327,234.031709,0.000193,30]
[319274137,1710635011083,234.031709,0.000193,30]
[319274138,1710635011835,234.031709,0.000193,30]
[319274139,1710635012326,234.031709,0.000193,30]
[319274140,1710635012698,234.031709,0.000193,30]
[319274141,1710635013090,234.031709,0.000193,30]
[319274142,1710635013516,234.031709,0.000193,30]
[319274143,1710635013918,234.031709,0.000193,30]
[319274144,1710635014332,234.031709,0.000193,30]
[319274145,1710635014730,234.031709,0.000193,30]
[319274146,1710635015147,234.031709,0.000193,30]
[319274147,1710635015547,234.031709,0.000193,30]
[319274148,1710635015983,234.031709,0.000193,30]
[319274149,1710635022154,345.031709,0.000193,30]
[319274150,1710635022745,345.031709,0.000193,30]
[319274151,1710635023166,345.031709,0.000193,30]
[319274152,1710635023602,345.031709,0.000193,30]
[319274153,1710635024052,345.031709,0.000193,30]
[319274154,1710635024503,345.031709,0.000193,30]
[319274155,1710635024922,345.031709,0.000193,30]
[319274156,1710635025377,345.031709,0.000193,30]
[319274157,1710635026075,345.031709,0.000193,30]
[319274158,1710635027597,345.031709,0.000193,30]
[319274159,1710635044666,345.031709,0.000193,30]
[319274160,1710635045750,345.031709,0.000193,30]
[319274161,1710635061419,345.031709,0.000193,30]
[319274162,1710635062106,345.031709,0.000193,30]
[319274163,1710635062585,345.031709,0.000193,30]
[319274164,1710635063102,345.031709,0.000193,30]
[319274165,1710635063551,345.031709,0.000193,30]
[319274166,1710635064188,345.031709,0.000193,30]
[319274167,1710635064387,345.031709,0.000193,30]
[319274168,1710635064841,345.031709,0.000193,30]
[319274169,1710635065286,345.031709,0.000193,30]
[319274170,1710635065906,345.031709,0.000193,30]
[319274171,1710635066170,345.031709,0.000193,30]
[319274172,1710635066756,345.031709,0.000193,30]
[319274173,1710635078880,151.031709,0.000193,30]
[319274174,1710635079642,151.031709,0.000193,30]
[319274175,1710635080384,151.031709,0.000193,30]
[319274176,1710635080579,151.031709,0.000193,30]
[319274177,1710635080828,151.031709,0.000193,30]
[319274178,1710635081217,151.031709,0.000193,30]
[319274179,1710635081598,151.031709,0.000193,30]
[319274180,1710635082005,151.031709,0.000193,30]
[319274181,1710635082414,151.031709,0.000193,30]
[319274182,1710635082800,151.031709,0.000193,30]
[319274183,1710635083251,151.031709,0.000193,30]
[319274184,1710635090139,151.031709,0.000193,30]
[319274185,1710635090594,151.031709,0.000193,30]
[319274186,1710635091034,151.031709,0.000193,30]
[319274187,1710635091482,151.031709,0.000193,30]
[319274188,1710635091911,151.031709,0.000193,30]
[319274189,1710635101364,151.031709,0.000193,30]
[319274190,1710635103053,151.031709,0.000193,30]
[319274191,1710635263495,159.52126396,0.00011778,2]
[319274192,1710635328137,7458.97676472,0.00011778,2]
[319274193,1710635342156,7458.97676472,0.00011778,2]
[319274194,1710635360153,6532.19993574,0.00011778,2]
[319274195,1710635374152,681.14,0.00011115,2]
[319274199,1710635432189,-340.65943347,0.00011858,2]
[319274200,1710635432200,-409.34056653,0.00011859,2]
[319274283,1710635438194,-679.09501998,0.00011858,2]
[319274284,1710635438204,-231.37883763,0.00011858,2]
[319274285,1710635438213,-113.02097437,0.00011859,2]
[319274286,1710635438224,-160.25297431,0.00011859,2]
[319274287,1710635438235,-535.16693155,0.00011859,2]
[319274288,1710635438245,-373.8809731,0.00011859,2]
[319274289,1710635438256,-10.25057208,0.0001186,2]
[319274290,1710635438299,-144.74942792,0.0001186,2]
[319274291,1710635438309,-230.86501208,0.0001186,2]
[319274292,1710635438321,-273.0,0.0001186,2]
[319274293,1710635438332,-8752.8848397,0.0001186,2]
[319274294,1710635438346,-1282.48945485,0.0001186,2]
[319274295,1710635438355,-155.0,0.00011861,2]
[319274296,1710635438366,-217.18831317,0.00011861,2]
[319274297,1710635438375,-3357.84626022,0.00011861,2]
[319274298,1710635438385,-150.0,0.00011861,2]
[319274299,1710635438396,-157.74681008,0.00011862,2]
[319274300,1710635438405,-200.77694229,0.00011862,2]
[319274301,1710635438415,-2163.23429142,0.00011862,2]
[319274302,1710635438424,-159.52126381,0.00011992,2]